[Event "EYCC Girls-U10 2019"]
[Site "Bratislava"]
[Date "2019.08.09"]
[Round "8.19"]
[White "Mgeladze, Kesaria"]
[Black "Novomeska, Karin"]
[Result "1-0"]
[ECO "B13"]
[WhiteElo "1294"]
[BlackElo "1269"]
[Annotator "NA"]
[PlyCount "125"]
[EventDate "2019.08.02"]
[EventType "swiss"]
[EventCountry "SVK"]
[SourceTitle "playchess.com"]
[Source "ChessBase"]
[SourceQuality "1"]
[TimeControl "40/5400+30:1800+30"]

1. e4 {[%emt 0:00:00]} c6 {[%emt 0:00:00]} 2. d4 {[%emt 0:00:00]} d5 {[%emt 0:00:00]} 3. exd5 {[%emt 0:00:00]} cxd5 {[%emt 0:00:00]} 4. Bd3 {[%emt 0:00:00]} g6 {[%emt 0:00:58]} 5. c3 {[%emt 0:00:15]} Nf6 {[%emt 0:00:52]} 6. Bf4 {[%emt 0:00:17]} Bg7 {[%emt 0:01:20]} 7. Nf3 {[%emt 0:00:28]} O-O {[%emt 0:02:06]} 8. O-O {[%emt 0:00:21]} Nc6 {[%emt 0:02:58]} 9. Ne5 {[%emt 0:00:45]} Nxe5 {[%emt 0:05:08]} 10. Bxe5 {[%emt 0:00:42]} Ne8 {[%emt 0:04:28]} 11. Bxg7 {[%emt 0:03:48]} Nxg7 {[%emt 0:00:07]} 12. f4 {[%emt 0:00:25]} Bf5 {[%emt 0:02:04]} 13. Be2 {[%emt 0:02:11]} Qd7 {[%emt 0:10:29]} 14. Nd2 {[%emt 0:00:28]} h5 {[%emt 0:11:04]} 15. Nf3 {[%emt 0:01:17]} Qe6 {[%emt 0:07:06]} 16. Ne5 {[%emt 0:05:03]} f6 {[%emt 0:05:54]} 17. Nd3 {[%emt 0:02:34]} Bxd3 {[%emt 0:02:04]} 18. Bxd3 {[%emt 0:00:07]} Nf5 {[%emt 0:02:49]} 19. Re1 {[%emt 0:01:51]} Qf7 {[%emt 0:08:03]} 20. Bxf5 {[%emt 0:01:06]} gxf5 {[%emt 0:00:06]} 21. Re3 {[%emt 0:00:47]} Kh7 {[%emt 0:00:57]} 22. Qe2 {[%emt 0:00:27]} e6 {[%emt 0:07:13]} 23. Rxe6 {[%emt 0:00:18]} Rae8 {[%emt 0:00:39]} 24. Re1 {[%emt 0:00:43]} Rxe6 {[%emt 0:01:48]} 25. Qxe6 {[%emt 0:00:18]} Kg6 {[%emt 0:01:36]} 26. Re3 {[%emt 0:00:45]} Qxe6 {[%emt 0:02:03]} 27. Rxe6 {[%emt 0:00:10]} Rf7 {[%emt 0:00:55]} 28. Rd6 {[%emt 0:00:07]} Re7 {[%emt 0:00:09]} 29. Kf2 {[%emt 0:00:09]} h4 {[%emt 0:00:16]} 30. Rxd5 {[%emt 0:00:24]} Re6 {[%emt 0:00:33]} 31. Rb5 {[%emt 0:00:40]} b6 {[%emt 0:00:23]} 32. d5 {[%emt 0:00:42]} Rd6 {[%emt 0:01:37]} 33. Ke3 {[%emt 0:02:18]} Kh5 {[%emt 0:01:31]} 34. h3 {[%emt 0:00:26]} a6 {[%emt 0:00:47]} 35. Rb3 {[%emt 0:00:15]} Kg6 {[%emt 0:01:07]} 36. c4 {[%emt 0:00:17]} Kf7 {[%emt 0:01:51]} 37. Kd4 {[%emt 0:01:15]} a5 {[%emt 0:03:38]} 38. c5 {[%emt 0:00:34]} bxc5+ {[%emt 0:02:23]} 39. Kxc5 {[%emt 0:00:04]} Rd8 {[%emt 0:00:40]} 40. Rb7+ {[%emt 0:00:00]} Ke8 {[%emt 0:00:00]} 41. d6 {[%emt 0:01:49]} Rc8+ 42. Rc7 {[%emt 0:00:06]} Rd8 {[%emt 0:01:08]} 43. Kc6 {[%emt 0:00:08]} Rb8 {[%emt 0:01:43]} 44. d7+ {[%emt 0:00:25]} Kd8 {[%emt 0:00:06]} 45. Ra7 {[%emt 0:01:35]} a4 {[%emt 0:00:23]} 46. a3 {[%emt 0:00:07]} Ke7 {[%emt 0:04:39]} 47. Rb7 {[%emt 0:25:46]} Rd8 {[%emt 0:01:07]} 48. Rc7 {[%emt 0:02:29]} Ke6 {[%emt 0:06:49]} 49. Rc8 {[%emt 0:00:54]} Ke7 {[%emt 0:01:57]} 50. Rxd8 {[%emt 0:01:09]} Kxd8 {[%emt 0:00:16]} 51. Kb5 {[%emt 0:00:17]} Kxd7 {[%emt 0:00:21]} 52. Kxa4 {[%emt 0:00:02]} Kc6 {[%emt 0:00:19]} 53. b4 {[%emt 0:00:05]} Kb6 {[%emt 0:00:29]} 54. b5 {[%emt 0:00:03]} Kb7 {[%emt 0:00:32]} 55. Ka5 {[%emt 0:00:03]} Ka7 {[%emt 0:00:21]} 56. b6+ {[%emt 0:00:03]} Kb7 {[%emt 0:00:11]} 57. Kb5 {[%emt 0:00:04]} Kb8 58. Kc6 Kc8 {[%emt 0:00:58]} 59. b7+ {[%emt 0:00:32]} Kb8 {[%emt 0:00:06]} 60. a4 {[%emt 0:00:04]} Ka7 {[%emt 0:00:09]} 61. Kc7 {[%emt 0:00:33]} Ka6 {[%emt 0:00:08]} 62. b8=Q {[%emt 0:00:56]} Ka5 {[%emt 0:00:37]} 63. Qb5# {[%emt 0:00:06]} 1-0

[Event "EYCC Girls-U10 2019"]
[Site "Bratislava"]
[Date "2019.08.09"]
[Round "8.20"]
[White "Artissi, Sabina"]
[Black "Tkacheva, Anna S."]
[Result "1/2-1/2"]
[ECO "D24"]
[WhiteElo "1419"]
[BlackElo "1264"]
[Annotator "NA"]
[PlyCount "83"]
[EventDate "2019.08.02"]
[EventType "swiss"]
[EventCountry "SVK"]
[SourceTitle "playchess.com"]
[Source "ChessBase"]
[SourceQuality "1"]
[TimeControl "40/5400+30:1800+30"]

1. Nf3 {[%emt 0:00:00]} d5 {[%emt 0:00:00]} 2. d4 {[%emt 0:00:00]} Nf6 {[%emt 0:00:00]} 3. c4 {[%emt 0:00:00]} dxc4 {[%emt 0:00:05]} 4. Nc3 {[%emt 0:00:03]} a6 {[%emt 0:00:20]} 5. a4 {[%emt 0:02:23]} Bg4 {[%emt 0:11:46]} 6. e4 {[%emt 0:00:48]} Nc6 {[%emt 0:03:42]} 7. Be3 {[%emt 0:00:19]} e6 {[%emt 0:04:21]} 8. Bxc4 {[%emt 0:00:05]} Bb4 {[%emt 0:01:35]} 9. Qd3 {[%emt 0:01:56]} O-O {[%emt 0:05:25]} 10. O-O {[%emt 0:12:03]} Bxc3 {[%emt 0:00:55]} 11. bxc3 {[%emt 0:00:47]} Qd7 {[%emt 0:05:44]} 12. Bf4 {[%emt 0:00:08]} Na5 {[%emt 0:03:47]} 13. Ne5 {[%emt 0:00:38]} Qe7 {[%emt 0:01:53]} 14. Bg5 {[%emt 0:01:37]} Bh5 {[%emt 0:03:02]} 15. g4 {[%emt 0:00:57]} Bg6 {[%emt 0:01:03]} 16. Nxg6 {[%emt 0:00:08]} hxg6 {[%emt 0:00:48]} 17. e5 {[%emt 0:00:07]} Rad8 {[%emt 0:06:12]} 18. exf6 {[%emt 0:00:41]} gxf6 {[%emt 0:00:14]} 19. Bh6 {[%emt 0:00:21]} Rfe8 {[%emt 0:00:21]} 20. Be3 {[%emt 0:00:29]} Kg7 {[%emt 0:00:25]} 21. f3 {[%emt 0:02:36]} Rh8 {[%emt 0:00:51]} 22. Rf2 {[%emt 0:01:25]} Qd6 {[%emt 0:02:15]} 23. Ba2 {[%emt 0:01:37]} Rh7 {[%emt 0:00:36]} 24. Qd2 {[%emt 0:01:14]} Rdh8 {[%emt 0:00:38]} 25. c4 {[%emt 0:02:02]} Nc6 {[%emt 0:01:26]} 26. Bf4 {[%emt 0:03:59]} Qd7 {[%emt 0:02:26]} 27. d5 {[%emt 0:01:23]} Ne7 {[%emt 0:00:55]} 28. d6 {[%emt 0:02:15]} cxd6 {[%emt 0:00:52]} 29. Qxd6 {[%emt 0:00:33]} Qxd6 {[%emt 0:03:16]} 30. Bxd6 {[%emt 0:00:07]} Nc6 {[%emt 0:00:08]} 31. Rb1 {[%emt 0:01:44]} Rd8 {[%emt 0:01:29]} 32. c5 {[%emt 0:00:37]} Ne5 {[%emt 0:02:33]} 33. Bxe5 {[%emt 0:04:49]} fxe5 {[%emt 0:00:10]} 34. Rxb7 {[%emt 0:00:52]} Kf6 {[%emt 0:02:22]} 35. c6 {[%emt 0:03:13]} Rd1+ {[%emt 0:00:52]} 36. Kg2 {[%emt 0:01:09]} Rc1 {[%emt 0:00:36]} 37. Rc7 {[%emt 0:01:41]} Rh8 {[%emt 0:01:29]} 38. Bb3 {[%emt 0:04:01]} Rb8 {[%emt 0:00:59]} 39. Bc2 {[%emt 0:00:42]} Rb2 {[%emt 0:03:01]} 40. Be4 {[%emt 0:00:00]} Rb4 {[%emt 0:00:00]} 41. Rc2 {[%emt 0:05:20]} Rxc2+ {[%emt 0:07:20]} 42. Bxc2 {[%emt 0:00:51]} 1/2-1/2

[Event "EYCC Girls-U10 2019"]
[Site "Bratislava"]
[Date "2019.08.09"]
[Round "8.22"]
[White "Voronaya, Eva"]
[Black "Horkova, Tereza"]
[Result "0-1"]
[ECO "C65"]
[WhiteElo "1133"]
[BlackElo "1287"]
[Annotator "NA"]
[PlyCount "158"]
[EventDate "2019.08.02"]
[EventType "swiss"]
[EventCountry "SVK"]
[SourceTitle "playchess.com"]
[Source "ChessBase"]
[SourceQuality "1"]
[TimeControl "40/5400+30:1800+30"]

1. e4 {[%emt 0:00:00]} e5 {[%emt 0:00:00]} 2. Nf3 {[%emt 0:00:00]} Nc6 {[%emt 0:00:00]} 3. Bb5 {[%emt 0:00:00]} Nf6 {[%emt 0:00:20]} 4. O-O {[%emt 0:00:52]} Be7 {[%emt 0:01:02]} 5. Re1 {[%emt 0:00:34]} d6 {[%emt 0:00:54]} 6. c3 {[%emt 0:02:28]} a6 {[%emt 0:01:09]} 7. Ba4 {[%emt 0:00:31]} O-O {[%emt 0:00:40]} 8. h3 {[%emt 0:00:24]} b5 {[%emt 0:02:45]} 9. Bc2 {[%emt 0:01:15]} Bb7 {[%emt 0:00:27]} 10. d4 {[%emt 0:03:02]} exd4 {[%emt 0:00:27]} 11. cxd4 {[%emt 0:00:25]} Nb4 {[%emt 0:03:08]} 12. Nbd2 {[%emt 0:04:49]} Nxc2 {[%emt 0:01:57]} 13. Qxc2 {[%emt 0:00:13]} c5 {[%emt 0:00:16]} 14. d5 {[%emt 0:05:36]} Rc8 {[%emt 0:01:29]} 15. Nf1 {[%emt 0:01:03]} Re8 {[%emt 0:01:05]} 16. Ng3 {[%emt 0:00:47]} Qb6 {[%emt 0:03:06]} 17. Bf4 {[%emt 0:07:54]} Bd8 {[%emt 0:07:42]} 18. Nf5 {[%emt 0:05:45]} Bc7 {[%emt 0:01:20]} 19. Rad1 {[%emt 0:06:22]} Rcd8 {[%emt 0:02:39]} 20. b3 {[%emt 0:10:19]} Bc8 {[%emt 0:00:20]} 21. Ng3 {[%emt 0:01:30]} a5 {[%emt 0:03:01]} 22. Rb1 {[%emt 0:09:20]} b4 {[%emt 0:02:13]} 23. Nd2 {[%emt 0:01:39]} Ba6 {[%emt 0:01:14]} 24. Nf5 {[%emt 0:01:15]} Qb5 {[%emt 0:01:38]} 25. Nc4 {[%emt 0:04:13]} Qb8 {[%emt 0:00:22]} 26. Kh1 {[%emt 0:00:49]} Nh5 {[%emt 0:00:45]} 27. Bh2 {[%emt 0:01:34]} g6 {[%emt 0:01:20]} 28. Nh6+ {[%emt 0:04:58]} Kg7 {[%emt 0:00:28]} 29. Ng4 {[%emt 0:00:10]} Bxc4 {[%emt 0:02:35]} 30. bxc4 {[%emt 0:00:18]} Qa7 {[%emt 0:01:57]} 31. Qb2+ {[%emt 0:01:46]} Kg8 {[%emt 0:00:38]} 32. Nh6+ {[%emt 0:11:19]} Kf8 {[%emt 0:00:17]} 33. Bf4 {[%emt 0:01:59]} Nxf4 {[%emt 0:11:09]} 34. Qf6 {[%emt 0:00:23]} Bb6 {[%emt 0:00:34]} 35. Qxf4 {[%emt 0:00:22]} Qe7 {[%emt 0:00:46]} 36. Ng4 {[%emt 0:01:11]} Qh4 {[%emt 0:02:27]} 37. Qf6 {[%emt 0:04:15]} Qxf6 {[%emt 0:00:47]} 38. Nxf6 {[%emt 0:00:09]} Re5 {[%emt 0:00:30]} 39. f4 {[%emt 0:00:52]} Re7 {[%emt 0:00:21]} 40. Nxh7+ {[%emt 0:00:00]} Kg7 {[%emt 0:00:00]} 41. Ng5 {[%emt 0:01:04]} a4 {[%emt 0:01:13]} 42. g4 {[%emt 0:01:47]} Rde8 {[%emt 0:00:43]} 43. Kg2 {[%emt 0:01:16]} Rb7 {[%emt 0:01:51]} 44. Re3 {[%emt 0:00:50]} Bd8 {[%emt 0:01:10]} 45. Kf3 {[%emt 0:00:59]} Rh8 {[%emt 0:01:00]} 46. Kg3 {[%emt 0:00:51]} Bf6 {[%emt 0:01:17]} 47. h4 {[%emt 0:00:28]} Bd4 {[%emt 0:02:34]} 48. Rf3 {[%emt 0:01:40]} Rhb8 {[%emt 0:01:41]} 49. h5 {[%emt 0:04:56]} b3 {[%emt 0:01:53]} 50. axb3 {[%emt 0:00:20]} axb3 {[%emt 0:01:07]} 51. hxg6 {[%emt 0:00:14]} Kxg6 {[%emt 0:00:16]} 52. Nh3 {[%emt 0:00:39]} b2 {[%emt 0:00:15]} 53. f5+ {[%emt 0:00:30]} Kg7 {[%emt 0:00:42]} 54. g5 {[%emt 0:03:48]} Rb3 {[%emt 0:00:42]} 55. f6+ {[%emt 0:00:17]} Kg8 {[%emt 0:00:30]} 56. Nf2 {[%emt 0:01:37]} Rxf3+ {[%emt 0:00:41]} 57. Kxf3 {[%emt 0:00:12]} Ra8 {[%emt 0:01:04]} 58. Nd3 {[%emt 0:01:16]} Ra3 {[%emt 0:01:36]} 59. Ke2 {[%emt 0:00:19]} Ra1 {[%emt 0:00:35]} 60. Rxb2 {[%emt 0:02:05]} Bxb2 {[%emt 0:00:12]} 61. Nxb2 {[%emt 0:00:10]} Ra2 {[%emt 0:00:28]} 62. Ke3 {[%emt 0:00:39]} Rxb2 {[%emt 0:00:13]} 63. e5 {[%emt 0:00:40]} dxe5 {[%emt 0:00:24]} 64. Ke4 {[%emt 0:00:24]} Re2+ {[%emt 0:00:26]} 65. Kf5 {[%emt 0:00:10]} e4 {[%emt 0:00:18]} 66. d6 {[%emt 0:00:05]} Rd2 {[%emt 0:00:13]} 67. Kxe4 {[%emt 0:00:12]} Rxd6 {[%emt 0:00:07]} 68. Kf5 {[%emt 0:00:31]} Rd4 {[%emt 0:00:11]} 69. g6 {[%emt 0:00:09]} Rxc4 {[%emt 0:00:19]} 70. gxf7+ {[%emt 0:00:15]} Kxf7 {[%emt 0:00:12]} 71. Ke5 {[%emt 0:00:08]} Rd4 {[%emt 0:00:22]} 72. Kf5 {[%emt 0:00:24]} c4 {[%emt 0:00:07]} 73. Ke5 {[%emt 0:00:07]} Rd8 {[%emt 0:00:20]} 74. Ke4 {[%emt 0:00:07]} c3 {[%emt 0:00:11]} 75. Ke3 {[%emt 0:00:04]} c2 {[%emt 0:00:05]} 76. Ke2 {[%emt 0:00:04]} c1=Q {[%emt 0:00:08]} 77. Kf2 {[%emt 0:00:06]} Qc3 {[%emt 0:00:13]} 78. Ke2 {[%emt 0:00:08]} Rd2+ {[%emt 0:00:08]} 79. Ke1 {[%emt 0:00:04]} Qc1# 0-1

[Event "EYCC Girls-U10 2019"]
[Site "Bratislava"]
[Date "2019.08.09"]
[Round "8.24"]
[White "Alexandri, Vasiliki"]
[Black "Kollia, Evgenia"]
[Result "0-1"]
[ECO "D30"]
[WhiteElo "1068"]
[BlackElo "1034"]
[Annotator "NA"]
[PlyCount "156"]
[EventDate "2019.08.02"]
[EventType "swiss"]
[EventCountry "SVK"]
[SourceTitle "playchess.com"]
[Source "ChessBase"]
[SourceQuality "1"]
[TimeControl "40/5400+30:1800+30"]

1. d4 {[%emt 0:00:00]} d5 {[%emt 0:00:00]} 2. c4 {[%emt 0:00:14]} e6 {[%emt 0:00:22]} 3. cxd5 {[%emt 0:00:38]} exd5 {[%emt 0:00:33]} 4. Nc3 {[%emt 0:00:36]} c6 {[%emt 0:02:14]} 5. Nf3 {[%emt 0:01:16]} Bf5 {[%emt 0:03:48]} 6. Qb3 {[%emt 0:01:12]} Qc7 {[%emt 0:03:43]} 7. Bg5 {[%emt 0:03:24]} Bd6 {[%emt 0:05:15]} 8. e3 {[%emt 0:01:37]} f6 {[%emt 0:03:36]} 9. Bh4 {[%emt 0:00:40]} Ne7 {[%emt 0:05:40]} 10. Ne2 {[%emt 0:02:27]} Nd7 {[%emt 0:04:16]} 11. Bg3 {[%emt 0:01:52]} Nb6 {[%emt 0:07:38]} 12. Rc1 {[%emt 0:04:59]} Rc8 {[%emt 0:10:05]} 13. Bxd6 {[%emt 0:01:56]} Qxd6 {[%emt 0:01:30]} 14. Ng3 {[%emt 0:01:31]} Bg6 {[%emt 0:05:50]} 15. Nh4 {[%emt 0:02:28]} Bf7 {[%emt 0:08:47]} 16. Bd3 {[%emt 0:01:24]} g6 {[%emt 0:07:55]} 17. O-O {[%emt 0:01:20]} O-O {[%emt 0:02:34]} 18. Qd1 {[%emt 0:01:51]} c5 {[%emt 0:05:52]} 19. dxc5 {[%emt 0:05:01]} Rxc5 {[%emt 0:01:36]} 20. Rxc5 {[%emt 0:01:11]} Qxc5 {[%emt 0:00:31]} 21. Qg4 {[%emt 0:01:29]} Qa5 {[%emt 0:03:07]} 22. a3 {[%emt 0:07:39]} Qd2 {[%emt 0:02:12]} 23. Qe2 {[%emt 0:00:29]} Qxe2 {[%emt 0:00:24]} 24. Nxe2 {[%emt 0:00:31]} Nc4 {[%emt 0:02:54]} 25. b3 {[%emt 0:02:13]} Nd2 {[%emt 0:01:30]} 26. Rc1 {[%emt 0:06:32]} Nxb3 {[%emt 0:00:58]} 27. Rc7 {[%emt 0:03:46]} Nc8 {[%emt 0:02:26]} 28. Bc2 {[%emt 0:04:06]} Na5 {[%emt 0:01:02]} 29. Nd4 Re8 {[%emt 0:02:54]} 30. Nb3 {[%emt 0:02:52]} Nxb3 {[%emt 0:00:55]} 31. Bxb3 {[%emt 0:00:21]} b6 {[%emt 0:00:40]} 32. Rd7 {[%emt 0:00:32]} Re5 {[%emt 0:01:12]} 33. Rd8+ {[%emt 0:00:12]} Re8 {[%emt 0:00:32]} 34. Rxe8+ {[%emt 0:00:13]} Bxe8 {[%emt 0:00:29]} 35. Bxd5+ {[%emt 0:00:13]} Kg7 {[%emt 0:01:09]} 36. Kf1 {[%emt 0:00:18]} Nd6 {[%emt 0:01:18]} 37. Nf3 {[%emt 0:00:47]} Nb5 {[%emt 0:01:26]} 38. a4 {[%emt 0:01:17]} Nc3 {[%emt 0:00:26]} 39. Bb3 {[%emt 0:00:13]} Bxa4 {[%emt 0:00:29]} 40. Bxa4 {[%emt 0:00:00]} Nxa4 {[%emt 0:00:00]} 41. Ke2 {[%emt 0:00:33]} Kf7 {[%emt 0:01:40]} 42. Kd3 {[%emt 0:00:13]} Ke6 {[%emt 0:00:47]} 43. Kc4 {[%emt 0:00:18]} Nc5 {[%emt 0:00:51]} 44. Nd4+ {[%emt 0:00:40]} Kd7 {[%emt 0:02:16]} 45. Kb5 {[%emt 0:00:44]} Kc7 {[%emt 0:02:13]} 46. f3 {[%emt 0:00:33]} f5 {[%emt 0:04:18]} 47. h3 {[%emt 0:00:31]} h6 {[%emt 0:03:06]} 48. g4 {[%emt 0:00:21]} fxg4 {[%emt 0:02:09]} 49. fxg4 {[%emt 0:00:40]} Kb7 {[%emt 0:02:17]} 50. Ne2 {[%emt 0:01:24]} a6+ {[%emt 0:02:34]} 51. Kb4 {[%emt 0:00:16]} Ne4 {[%emt 0:01:24]} 52. Nf4 {[%emt 0:02:43]} g5 {[%emt 0:01:16]} 53. Ne6 {[%emt 0:00:36]} Nf2 {[%emt 0:01:46]} 54. Ng7 {[%emt 0:00:23]} Nxh3 {[%emt 0:00:42]} 55. e4 {[%emt 0:00:24]} Nf2 {[%emt 0:00:43]} 56. e5 {[%emt 0:00:28]} Nd3+ {[%emt 0:00:20]} 57. Kc3 {[%emt 0:00:31]} Nxe5 {[%emt 0:00:11]} 58. Nf5 {[%emt 0:00:19]} Nxg4 {[%emt 0:00:46]} 59. Nd6+ {[%emt 0:02:24]} Kc6 {[%emt 0:00:22]} 60. Nc4 {[%emt 0:00:12]} h5 {[%emt 0:00:51]} 61. Nd2 {[%emt 0:00:40]} h4 {[%emt 0:00:25]} 62. Nf3 {[%emt 0:00:44]} h3 {[%emt 0:01:13]} 63. Kb4 {[%emt 0:00:34]} h2 {[%emt 0:00:29]} 64. Nxh2 {[%emt 0:00:05]} Nxh2 {[%emt 0:00:08]} 65. Kc4 {[%emt 0:00:05]} g4 {[%emt 0:00:25]} 66. Kd3 {[%emt 0:00:29]} a5 {[%emt 0:00:24]} 67. Ke3 {[%emt 0:00:08]} a4 {[%emt 0:00:09]} 68. Kf2 {[%emt 0:00:06]} a3 {[%emt 0:00:05]} 69. Kg3 {[%emt 0:00:07]} a2 {[%emt 0:00:06]} 70. Kxh2 {[%emt 0:00:06]} a1=Q {[%emt 0:00:12]} 71. Kg3 {[%emt 0:00:08]} Qe5+ {[%emt 0:00:29]} 72. Kxg4 {[%emt 0:00:11]} Kd5 {[%emt 0:00:17]} 73. Kf3 {[%emt 0:00:08]} Qd4 {[%emt 0:00:16]} 74. Ke2 {[%emt 0:00:13]} Qc3 {[%emt 0:00:23]} 75. Kf1 Qd2 {[%emt 0:00:14]} 76. Kg1 {[%emt 0:00:22]} Ke4 {[%emt 0:00:21]} 77. Kh1 {[%emt 0:00:11]} Kf3 {[%emt 0:00:16]} 78. Kg1 {[%emt 0:00:06]} Qg2# {[%emt 0:00:15]} 0-1

[Event "EYCC Girls-U10 2019"]
[Site "Bratislava"]
[Date "2019.08.10"]
[Round "9.1"]
[White "Shukhman, Anna"]
[Black "Smietanska, Wiktoria"]
[Result "1-0"]
[ECO "B90"]
[WhiteElo "1806"]
[BlackElo "1547"]
[Annotator "NA"]
[PlyCount "151"]
[EventDate "2019.08.02"]
[EventType "swiss"]
[EventCountry "SVK"]
[SourceTitle "playchess.com"]
[Source "ChessBase"]
[SourceQuality "1"]
[TimeControl "40/5400+30:1800+30"]

1. e4 {[%emt 0:00:00]} c5 {[%emt 0:00:00]} 2. Nf3 {[%emt 0:00:00]} d6 {[%emt 0:00:00]} 3. d4 {[%emt 0:00:00]} Nf6 {[%emt 0:00:00]} 4. Nc3 {[%emt 0:02:49]} cxd4 {[%emt 0:00:00]} 5. Nxd4 {[%emt 0:00:04]} a6 {[%emt 0:00:09]} 6. Qd3 {[%emt 0:00:04]} e5 {[%emt 0:03:27]} 7. Nb3 {[%emt 0:00:19]} Be7 {[%emt 0:02:40]} 8. Bg5 {[%emt 0:02:18]} Be6 {[%emt 0:06:18]} 9. Be2 {[%emt 0:05:39]} Nbd7 {[%emt 0:05:23]} 10. O-O {[%emt 0:04:16]} Rc8 {[%emt 0:02:36]} 11. Rad1 {[%emt 0:04:01]} h6 {[%emt 0:02:31]} 12. Be3 {[%emt 0:00:25]} Bc4 {[%emt 0:07:35]} 13. Qd2 {[%emt 0:00:12]} Nb6 {[%emt 0:04:26]} 14. Na5 {[%emt 0:06:38]} Bxe2 {[%emt 0:04:08]} 15. Qxe2 {[%emt 0:00:40]} Qc7 {[%emt 0:02:57]} 16. Bxb6 {[%emt 0:04:47]} Qxb6 {[%emt 0:00:09]} 17. Nc4 {[%emt 0:00:13]} Qc6 {[%emt 0:02:52]} 18. Ne3 {[%emt 0:00:29]} Nxe4 {[%emt 0:07:30]} 19. Ncd5 {[%emt 0:01:55]} g6 {[%emt 0:10:05]} 20. Nxe7 {[%emt 0:01:59]} Kxe7 {[%emt 0:01:55]} 21. Nd5+ {[%emt 0:00:06]} Kf8 {[%emt 0:00:58]} 22. Qxe4 {[%emt 0:00:39]} Qxc2 {[%emt 0:01:43]} 23. Qb4 {[%emt 0:01:08]} Qc6 {[%emt 0:03:47]} 24. Nb6 {[%emt 0:01:25]} Rd8 {[%emt 0:05:06]} 25. Rc1 {[%emt 0:01:34]} Qb5 {[%emt 0:02:08]} 26. Qxb5 {[%emt 0:00:06]} axb5 {[%emt 0:00:07]} 27. Rfd1 {[%emt 0:00:17]} Ke7 {[%emt 0:01:16]} 28. Rc7+ {[%emt 0:00:12]} Ke6 {[%emt 0:00:19]} 29. Rxb7 {[%emt 0:01:30]} d5 {[%emt 0:00:10]} 30. Nxd5 {[%emt 0:01:04]} g5 {[%emt 0:08:52]} 31. Rb6+ {[%emt 0:04:14]} Kd7 {[%emt 0:01:50]} 32. Rxb5 {[%emt 0:00:46]} Kc6 {[%emt 0:00:13]} 33. Rb6+ {[%emt 0:01:07]} Kd7 {[%emt 0:01:16]} 34. Rc1 {[%emt 0:00:52]} Ke8 {[%emt 0:01:03]} 35. Nf6+ {[%emt 0:00:18]} Ke7 {[%emt 0:00:31]} 36. Rc7+ {[%emt 0:00:11]} Kf8 {[%emt 0:00:11]} 37. Nd7+ {[%emt 0:00:21]} Ke8 {[%emt 0:00:56]} 38. Rbb7 {[%emt 0:00:37]} Ke7 {[%emt 0:01:05]} 39. a4 {[%emt 0:01:05]} Kd6 {[%emt 0:00:46]} 40. g3 {[%emt 0:00:00]} h5 {[%emt 0:00:00]} 41. a5 {[%emt 0:01:45]} h4 {[%emt 0:00:49]} 42. a6 {[%emt 0:01:09]} h3 {[%emt 0:02:34]} 43. a7 {[%emt 0:00:09]} Rc8 {[%emt 0:01:06]} 44. Nb8 {[%emt 0:02:17]} Rxc7 {[%emt 0:00:59]} 45. Rxc7 {[%emt 0:00:10]} Kxc7 {[%emt 0:00:04]} 46. a8=Q {[%emt 0:00:09]} Rxb8 {[%emt 0:00:05]} 47. Qa7+ {[%emt 0:00:04]} Rb7 {[%emt 0:00:19]} 48. Qc5+ {[%emt 0:00:05]} Kd7 {[%emt 0:00:49]} 49. Qd5+ {[%emt 0:00:06]} Kc8 {[%emt 0:00:20]} 50. Qxe5 {[%emt 0:00:06]} Rd7 {[%emt 0:00:52]} 51. Qc5+ {[%emt 0:00:24]} Kb7 {[%emt 0:01:05]} 52. Qb5+ {[%emt 0:00:12]} Kc7 {[%emt 0:00:32]} 53. Qxd7+ {[%emt 0:01:13]} Kxd7 {[%emt 0:00:08]} 54. f4 {[%emt 0:00:07]} g4 {[%emt 0:01:22]} 55. Kf2 {[%emt 0:00:06]} Kd6 {[%emt 0:00:14]} 56. Ke3 {[%emt 0:00:05]} Kd5 {[%emt 0:00:21]} 57. Kd3 {[%emt 0:00:07]} f5 {[%emt 0:00:20]} 58. b4 {[%emt 0:00:05]} Kd6 {[%emt 0:00:44]} 59. Kd4 {[%emt 0:00:05]} Kc6 {[%emt 0:00:05]} 60. Ke5 {[%emt 0:00:08]} Kb5 {[%emt 0:00:06]} 61. Kxf5 {[%emt 0:00:11]} Kxb4 {[%emt 0:00:05]} 62. Kxg4 {[%emt 0:01:11]} Kc5 {[%emt 0:00:06]} 63. Kxh3 {[%emt 0:00:06]} Kd6 {[%emt 0:00:05]} 64. Kg4 {[%emt 0:00:05]} Ke7 {[%emt 0:00:04]} 65. Kg5 {[%emt 0:00:06]} Kf7 {[%emt 0:00:05]} 66. f5 {[%emt 0:00:05]} Kg7 {[%emt 0:00:17]} 67. h4 {[%emt 0:00:05]} Kf7 {[%emt 0:00:13]} 68. f6 {[%emt 0:00:05]} Kg8 {[%emt 0:00:11]} 69. Kg6 {[%emt 0:00:06]} Kh8 {[%emt 0:00:14]} 70. Kf7 {[%emt 0:00:06]} Kh7 {[%emt 0:00:08]} 71. Ke7 {[%emt 0:00:14]} Kh8 {[%emt 0:00:16]} 72. f7 {[%emt 0:00:05]} Kh7 {[%emt 0:00:03]} 73. f8=Q {[%emt 0:00:20]} Kg6 {[%emt 0:00:03]} 74. g4 {[%emt 0:00:37]} Kh7 {[%emt 0:00:06]} 75. g5 {[%emt 0:00:04]} Kg6 {[%emt 0:00:05]} 76. Qf7# {[%emt 0:00:04]} 1-0